[Event "GER-chT Youth Countries 2020"]
[Site "Berlin"]
[Date "2020.10.02"]
[Round "4"]
[White "Niermann, Tristan"]
[Black "Fromm, Marius"]
[Result "1-0"]
[ECO "A62"]
[WhiteElo "2262"]
[BlackElo "2190"]
[Annotator "ChessBase"]
[PlyCount "85"]
[EventDate "2020.09.30"]
[EventType "team-tourn"]
[EventRounds "7"]
[EventCountry "GER"]
[SourceTitle "playchess.com"]
[Source "ChessBase"]
[SourceQuality "1"]
[TimeControl "30/5400+30:0"]

1. d4 {[%emt 0:00:00]} Nf6 {[%emt 0:00:00]} 2. c4 {[%emt 0:00:00]} e6 {[%emt 0:00:00]} 3. g3 {[%emt 0:00:00]} c5 {[%emt 0:00:15]} 4. d5 {[%emt 0:00:00]} exd5 {[%emt 0:00:05]} 5. cxd5 {[%emt 0:00:01]} d6 {[%emt 0:00:07]} 6. Nc3 {[%emt 0:00:07]} g6 {[%emt 0:00:04]} 7. Nf3 {[%emt 0:00:08]} Bg7 {[%emt 0:00:13]} 8. Bg2 {[%emt 0:00:11]} O-O {[%emt 0:00:05]} 9. O-O {[%emt 0:00:07]} Re8 {[%emt 0:00:05]} 10. Bf4 {[%emt 0:00:12]} Ne4 {[%emt 0:01:49]} 11. Nxe4 {[%emt 0:00:16]} Rxe4 {[%emt 0:00:04]} 12. Nd2 {[%emt 0:00:12]} Rxf4 {[%emt 0:00:04]} 13. gxf4 {[%emt 0:00:08]} Bxb2 {[%emt 0:00:05]} 14. Rb1 {[%emt 0:00:06]} Bg7 {[%emt 0:00:11]} 15. e4 {[%emt 0:00:10]} Nd7 {[%emt 0:03:00]} 16. Qf3 {[%emt 0:00:19]} b5 {[%emt 0:05:22]} 17. Rfe1 {[%emt 0:00:13]} Rb8 {[%emt 0:13:31]} 18. Qg3 {[%emt 0:00:48]} Qc7 {[%emt 0:25:04]} 19. Nf3 {[%emt 0:13:24]} Nf6 {[%emt 0:05:49]} 20. e5 {[%emt 0:16:39]} Nh5 {[%emt 0:16:41]} 21. Qh4 {[%emt 0:11:49]} Bf5 {[%emt 0:09:22]} 22. Rbd1 {[%emt 0:04:49]} Bf8 {[%emt 0:05:50]} 23. Bh3 {[%emt 0:37:31]} Bxh3 {[%emt 0:01:07]} 24. Qxh3 {[%emt 0:01:10]} Nxf4 {[%emt 0:00:03]} 25. Qh4 {[%emt 0:00:46]} Nh5 {[%emt 0:05:18]} 26. e6 {[%emt 0:01:16]} f6 {[%emt 0:00:05]} 27. Qe4 {[%emt 0:03:20]} Be7 {[%emt 0:01:09]} 28. Qc2 {[%emt 0:02:31]} f5 {[%emt 0:00:41]} 29. Nd4 {[%emt 0:00:57]} Nf6 {[%emt 0:01:31]} 30. Nc6 {[%emt 0:01:23]} Rb6 {[%emt 0:00:23]} 31. a4 {[%emt 1:31:37]} b4 {[%emt 1:33:01]} 32. a5 {[%emt 0:00:11]} Rxc6 {[%emt 0:02:37]} 33. dxc6 {[%emt 0:00:09]} Qxc6 {[%emt 0:00:03]} 34. Rb1 {[%emt 0:02:12]} Nd5 {[%emt 0:01:28]} 35. Qc4 {[%emt 0:00:46]} g5 {[%emt 0:01:15]} 36. Rb3 {[%emt 0:00:09]} Nf4 {[%emt 0:00:42]} 37. Rg3 {[%emt 0:00:13]} Kf8 {[%emt 0:00:19]} 38. f3 {[%emt 0:03:53]} h5 {[%emt 0:00:36]} 39. h4 {[%emt 0:00:48]} d5 {[%emt 0:00:49]} 40. Qc2 {[%emt 0:00:16]} Ke8 {[%emt 0:00:34]} 41. Qxf5 {[%emt 0:00:00]} Qd6 {[%emt 0:00:00]} 42. Rxg5 {[%emt 0:00:00]} Kd8 {[%emt 0:00:00]} 43. Rg7 {[%emt 0:00:00]} 1-0

[Event "GER-chT Youth Countries 2020"]
[Site "Berlin"]
[Date "2020.10.02"]
[Round "4"]
[White "Hommer, Jeremy"]
[Black "Nguyen, Ha Thanh"]
[Result "1-0"]
[ECO "B30"]
[WhiteElo "2246"]
[BlackElo "2019"]
[Annotator "ChessBase"]
[PlyCount "93"]
[EventDate "2020.09.30"]
[EventType "team-tourn"]
[EventRounds "7"]
[EventCountry "GER"]
[SourceTitle "playchess.com"]
[Source "ChessBase"]
[SourceQuality "1"]
[TimeControl "30/5400+30:0"]

1. e4 {[%emt 0:00:00]} c5 {[%emt 0:00:00]} 2. Nf3 {[%emt 0:00:00]} Nc6 {[%emt 0:00:00]} 3. Bb5 {[%emt 0:00:00]} e6 {[%emt 0:00:26]} 4. O-O {[%emt 0:00:45]} Nge7 {[%emt 0:00:41]} 5. Re1 {[%emt 0:01:59]} a6 {[%emt 0:01:23]} 6. Bxc6 {[%emt 0:00:34]} Nxc6 {[%emt 0:00:11]} 7. c3 {[%emt 0:02:43]} Be7 {[%emt 0:12:05]} 8. d4 {[%emt 0:09:04]} cxd4 {[%emt 0:01:30]} 9. cxd4 {[%emt 0:05:24]} d5 {[%emt 0:05:38]} 10. e5 {[%emt 0:03:58]} O-O {[%emt 0:04:26]} 11. Nc3 {[%emt 0:00:43]} h6 {[%emt 0:04:06]} 12. Bf4 {[%emt 0:04:49]} Re8 {[%emt 0:18:34]} 13. Kh1 {[%emt 0:10:54]} Bf8 {[%emt 0:04:30]} 14. Qd2 {[%emt 0:01:07]} Ne7 {[%emt 0:04:13]} 15. h4 {[%emt 0:10:31]} Nf5 {[%emt 0:02:28]} 16. h5 {[%emt 0:02:08]} g6 {[%emt 0:07:11]} 17. g4 {[%emt 0:07:42]} Nh4 {[%emt 0:01:22]} 18. Nh2 {[%emt 0:00:34]} Kh7 {[%emt 0:03:40]} 19. Qd3 {[%emt 0:05:38]} Be7 {[%emt 0:06:38]} 20. Bg3 {[%emt 0:03:32]} Rg8 {[%emt 0:02:05]} 21. Rg1 {[%emt 0:04:04]} Bd7 {[%emt 0:01:57]} 22. f4 {[%emt 0:01:37]} f5 {[%emt 0:05:07]} 23. exf6 {[%emt 0:00:37]} Bxf6 {[%emt 0:00:04]} 24. g5 {[%emt 0:00:44]} hxg5 {[%emt 0:01:57]} 25. Bxh4 {[%emt 0:00:28]} Kh8 {[%emt 0:04:08]} 26. Bxg5 {[%emt 0:00:53]} gxh5 {[%emt 0:04:36]} 27. Qh3 {[%emt 0:01:21]} Be8 {[%emt 0:02:03]} 28. Qxe6 {[%emt 0:00:30]} Bxg5 {[%emt 0:00:59]} 29. Rxg5 {[%emt 0:00:13]} Rxg5 {[%emt 0:00:26]} 30. Qh6+ {[%emt 0:00:07]} Kg8 {[%emt 0:00:04]} 31. Qxg5+ {[%emt 1:30:08]} Qxg5 {[%emt 1:30:04]} 32. fxg5 {[%emt 0:00:05]} Bg6 {[%emt 0:00:21]} 33. Re1 {[%emt 0:02:07]} Rd8 {[%emt 0:01:33]} 34. Kg2 {[%emt 0:00:12]} Rd6 {[%emt 0:00:57]} 35. Nf3 {[%emt 0:00:40]} b5 {[%emt 0:00:36]} 36. a3 {[%emt 0:00:44]} Bd3 {[%emt 0:01:17]} 37. Kg3 {[%emt 0:03:28]} a5 {[%emt 0:00:41]} 38. Ne5 {[%emt 0:00:48]} Bc2 {[%emt 0:00:12]} 39. Re2 {[%emt 0:00:48]} Bf5 {[%emt 0:00:30]} 40. Nxb5 {[%emt 0:00:27]} Rb6 {[%emt 0:00:30]} 41. Nc3 {[%emt 0:00:29]} Rb7 {[%emt 0:00:00]} 42. Nxd5 {[%emt 0:00:00]} h4+ {[%emt 0:00:00]} 43. Kxh4 {[%emt 0:00:00]} Rh7+ {[%emt 0:00:00]} 44. Kg3 {[%emt 0:00:00]} Rh3+ {[%emt 0:00:00]} 45. Kg2 {[%emt 0:00:00]} Kg7 {[%emt 0:00:00]} 46. Ne7 {[%emt 0:00:00]} Be6 {[%emt 0:00:00]} 47. d5 {[%emt 0:00:00]} 1-0

[Event "GER-chT Youth Countries 2020"]
[Site "Berlin"]
[Date "2020.10.02"]
[Round "4"]
[White "Haack, Kevin"]
[Black "Maetzkow, Maximilian Paul"]
[Result "1/2-1/2"]
[ECO "A14"]
[WhiteElo "2209"]
[BlackElo "2242"]
[Annotator "ChessBase"]
[PlyCount "70"]
[EventDate "2020.09.30"]
[EventType "team-tourn"]
[EventRounds "7"]
[EventCountry "GER"]
[SourceTitle "playchess.com"]
[Source "ChessBase"]
[SourceQuality "1"]
[TimeControl "30/5400+30:0"]

1. c4 {[%emt 0:00:00]} e6 {[%emt 0:00:46]} 2. g3 {[%emt 0:00:00]} Nf6 {[%emt 0:00:51]} 3. Bg2 {[%emt 0:00:00]} d5 {[%emt 0:00:15]} 4. Nf3 {[%emt 0:00:00]} Be7 {[%emt 0:00:05]} 5. O-O {[%emt 0:00:03]} O-O {[%emt 0:00:04]} 6. b3 {[%emt 0:00:27]} b6 {[%emt 0:01:02]} 7. Bb2 {[%emt 0:00:07]} Bb7 {[%emt 0:00:07]} 8. e3 {[%emt 0:00:32]} dxc4 {[%emt 0:08:47]} 9. bxc4 {[%emt 0:00:25]} c5 {[%emt 0:00:33]} 10. Qe2 {[%emt 0:02:17]} Nbd7 {[%emt 0:06:27]} 11. Rd1 {[%emt 0:02:06]} Qc7 {[%emt 0:04:43]} 12. Nc3 {[%emt 0:01:18]} Rac8 {[%emt 0:01:15]} 13. d3 {[%emt 0:07:27]} Rfd8 {[%emt 0:02:14]} 14. Rac1 {[%emt 0:05:54]} Qb8 {[%emt 0:12:02]} 15. e4 {[%emt 0:03:41]} Nf8 {[%emt 0:02:20]} 16. Nd2 {[%emt 0:09:09]} a6 {[%emt 0:12:44]} 17. f4 {[%emt 0:03:14]} Bc6 {[%emt 0:03:52]} 18. Nf3 {[%emt 0:04:27]} b5 {[%emt 0:01:23]} 19. Ne5 {[%emt 0:04:10]} Be8 {[%emt 0:01:01]} 20. Nb1 {[%emt 0:04:24]} N6d7 {[%emt 0:03:31]} 21. Nd2 {[%emt 0:04:06]} Bf6 {[%emt 0:06:02]} 22. Nxd7 {[%emt 0:04:56]} Nxd7 {[%emt 0:00:22]} 23. Bxf6 {[%emt 0:01:05]} gxf6 {[%emt 0:01:34]} 24. Rb1 {[%emt 0:07:49]} Qd6 {[%emt 0:02:02]} 25. Nf3 {[%emt 0:01:41]} Nf8 {[%emt 0:05:48]} 26. e5 {[%emt 0:05:20]} Qe7 {[%emt 0:00:35]} 27. Nd2 {[%emt 0:02:31]} f5 {[%emt 0:03:05]} 28. Nf3 {[%emt 0:03:53]} Bc6 {[%emt 0:04:34]} 29. Nd2 {[%emt 0:02:13]} Be8 {[%emt 0:00:08]} 30. Nb3 {[%emt 0:00:35]} b4 {[%emt 0:02:47]} 31. Na5 {[%emt 1:32:39]} Rc7 {[%emt 1:30:51]} 32. Bf3 {[%emt 0:03:03]} Rd4 {[%emt 0:02:19]} 33. Qg2 {[%emt 0:02:02]} Ba4 {[%emt 0:01:03]} 34. Rd2 {[%emt 0:00:43]} Qd7 {[%emt 0:00:21]} 35. Qf1 {[%emt 0:02:55]} Ng6 {[%emt 0:01:32]} 1/2-1/2

[Event "GER-chT Youth Countries 2020"]
[Site "Berlin"]
[Date "2020.10.02"]
[Round "4"]
[White "Musiolik, David"]
[Black "Post, Hugo"]
[Result "1-0"]
[ECO "B92"]
[WhiteElo "2198"]
[BlackElo "2209"]
[Annotator "ChessBase"]
[PlyCount "132"]
[EventDate "2020.09.30"]
[EventType "team-tourn"]
[EventRounds "7"]
[EventCountry "GER"]
[SourceTitle "playchess.com"]
[Source "ChessBase"]
[SourceQuality "1"]
[TimeControl "30/5400+30:0"]

1. e4 {[%emt 0:00:00]} c5 2. Nf3 {[%emt 0:00:00]} d6 {[%emt 0:00:00]} 3. d4 {[%emt 0:00:04]} cxd4 {[%emt 0:00:00]} 4. Nxd4 {[%emt 0:00:07]} Nf6 5. Nc3 {[%emt 0:00:08]} a6 {[%emt 0:00:01]} 6. Be2 {[%emt 0:00:00]} e5 {[%emt 0:00:45]} 7. Nb3 Be7 {[%emt 0:00:00]} 8. O-O {[%emt 0:00:37]} O-O {[%emt 0:00:24]} 9. Re1 {[%emt 0:03:29]} Be6 {[%emt 0:00:23]} 10. Bf3 {[%emt 0:01:09]} b5 11. a4 {[%emt 0:04:00]} b4 {[%emt 0:00:41]} 12. Nd5 {[%emt 0:00:06]} a5 13. Bd2 {[%emt 0:05:33]} Nxd5 {[%emt 0:07:30]} 14. exd5 {[%emt 0:02:51]} Bd7 {[%emt 0:06:17]} 15. c4 {[%emt 0:01:00]} f5 {[%emt 0:01:56]} 16. c5 {[%emt 0:00:58]} e4 {[%emt 0:10:02]} 17. Be2 dxc5 {[%emt 0:00:19]} 18. Bf4 {[%emt 0:02:50]} Kh8 {[%emt 0:17:19]} 19. Qd2 {[%emt 0:05:14]} Qb6 {[%emt 0:03:49]} 20. Rec1 {[%emt 0:01:34]} Rc8 {[%emt 0:00:28]} 21. d6 {[%emt 0:00:39]} Bf6 {[%emt 0:02:52]} 22. Be3 {[%emt 0:03:35]} Be5 {[%emt 0:09:33]} 23. Nxc5 {[%emt 0:14:48]} Qd8 {[%emt 0:06:41]} 24. Bf4 Qf6 25. Bxe5 {[%emt 0:02:48]} Qxe5 {[%emt 0:00:36]} 26. Nxd7 {[%emt 0:00:20]} Nxd7 27. Rxc8+ {[%emt 0:00:34]} Rxc8 {[%emt 0:00:13]} 28. Bb5 {[%emt 0:02:23]} Nc5 {[%emt 0:20:42]} 29. Rd1 {[%emt 0:13:10]} Ne6 {[%emt 0:00:01]} 30. d7 {[%emt 0:02:08]} Rd8 31. Qd6 Qxd6 {[%emt 1:32:17]} 32. Rxd6 {[%emt 1:30:36]} Nc7 {[%emt 0:02:06]} 33. Bc6 {[%emt 0:01:11]} Kg8 {[%emt 0:01:04]} 34. g4 {[%emt 0:00:23]} fxg4 35. Rd4 {[%emt 0:00:09]} Kf7 {[%emt 0:03:00]} 36. Rxe4 {[%emt 0:00:11]} h5 {[%emt 0:04:27]} 37. Re5 {[%emt 0:01:08]} g6 {[%emt 0:03:16]} 38. Kf1 {[%emt 0:00:41]} h4 {[%emt 0:00:54]} 39. b3 {[%emt 0:02:16]} Rf8 40. Re3 {[%emt 0:00:09]} Rd8 {[%emt 0:01:31]} 41. Re4 {[%emt 0:00:00]} h3 {[%emt 0:00:00]} 42. Ke1 {[%emt 0:00:00]} g5 {[%emt 0:00:00]} 43. Re5 {[%emt 0:00:00]} Rb8 {[%emt 0:00:00]} 44. Kd2 {[%emt 0:00:00]} Rd8 {[%emt 0:00:00]} 45. Ke3 {[%emt 0:00:00]} Rb8 {[%emt 0:00:00]} 46. Ke4 {[%emt 0:00:00]} Rd8 {[%emt 0:00:00]} 47. Kf5 {[%emt 0:00:00]} Rf8 48. Re8 {[%emt 0:00:00]} Nxe8 {[%emt 0:00:00]} 49. dxe8=Q+ {[%emt 0:00:00]} Rxe8 {[%emt 0:00:00]} 50. Bxe8+ {[%emt 0:00:00]} Kxe8 {[%emt 0:00:00]} 51. Kxg4 Ke7 {[%emt 0:00:00]} 52. Kxg5 {[%emt 0:00:00]} Ke6 53. f4 {[%emt 0:00:00]} Kd5 {[%emt 0:00:00]} 54. f5 Kd4 {[%emt 0:00:00]} 55. f6 {[%emt 0:00:00]} Kc3 {[%emt 0:00:00]} 56. f7 {[%emt 0:00:00]} Kxb3 {[%emt 0:00:00]} 57. f8=Q {[%emt 0:00:00]} Kxa4 {[%emt 0:00:00]} 58. Qc5 {[%emt 0:00:00]} b3 {[%emt 0:00:00]} 59. Qc3 {[%emt 0:00:00]} b2 {[%emt 0:00:00]} 60. Qc2+ {[%emt 0:00:00]} Ka3 {[%emt 0:00:00]} 61. Qc5+ {[%emt 1:09:38]} Ka4 62. Qb6 Ka3 {[%emt 1:18:40]} 63. Qxa5+ {[%emt 0:00:34]} Kb3 {[%emt 0:00:00]} 64. Qb5+ {[%emt 0:00:00]} Kc2 {[%emt 0:00:10]} 65. Qc4+ {[%emt 0:00:08]} Kd1 66. Qb3+ Kc1 {[%emt 0:00:54]} 1-0

[Event "GER-chT Youth Countries 2020"]
[Site "Berlin"]
[Date "2020.10.02"]
[Round "4"]
[White "Milare, Tyron"]
[Black "Colbow, Collin"]
[Result "1-0"]
[ECO "E11"]
[WhiteElo "2176"]
[BlackElo "2210"]
[Annotator "ChessBase"]
[PlyCount "99"]
[EventDate "2020.09.30"]
[EventType "team-tourn"]
[EventRounds "7"]
[EventCountry "GER"]
[SourceTitle "playchess.com"]
[Source "ChessBase"]
[SourceQuality "1"]
[TimeControl "30/5400+30:0"]

1. d4 {[%emt 0:00:00]} Nf6 {[%emt 0:00:00]} 2. Nf3 {[%emt 0:00:00]} e6 {[%emt 0:00:00]} 3. c4 {[%emt 0:00:01]} Bb4+ {[%emt 0:00:05]} 4. Nbd2 {[%emt 0:00:47]} b6 {[%emt 0:01:33]} 5. a3 {[%emt 0:01:32]} Bxd2+ {[%emt 0:00:15]} 6. Bxd2 {[%emt 0:00:10]} Bb7 {[%emt 0:00:06]} 7. Bf4 {[%emt 0:00:15]} d6 {[%emt 0:03:40]} 8. e3 {[%emt 0:01:56]} Nbd7 {[%emt 0:08:37]} 9. Bd3 {[%emt 0:03:19]} Qe7 {[%emt 0:06:47]} 10. Bg5 {[%emt 0:05:01]} h6 {[%emt 0:03:35]} 11. Bxf6 {[%emt 0:00:48]} Nxf6 {[%emt 0:01:09]} 12. Qa4+ {[%emt 0:03:59]} Nd7 {[%emt 0:07:20]} 13. e4 {[%emt 0:05:54]} O-O {[%emt 0:02:08]} 14. O-O {[%emt 0:02:51]} f5 {[%emt 0:05:10]} 15. Nd2 {[%emt 0:04:59]} f4 {[%emt 0:12:19]} 16. b4 {[%emt 0:07:23]} a5 {[%emt 0:05:23]} 17. Qc2 {[%emt 0:05:07]} Qf6 {[%emt 0:06:39]} 18. Qb2 {[%emt 0:03:03]} e5 {[%emt 0:04:45]} 19. d5 {[%emt 0:01:31]} g5 {[%emt 0:00:47]} 20. Be2 {[%emt 0:00:23]} Qe7 {[%emt 0:04:02]} 21. Rfc1 {[%emt 0:04:45]} Rfb8 {[%emt 0:02:08]} 22. Qc3 {[%emt 0:01:57]} Kf8 {[%emt 0:02:43]} 23. Nb3 {[%emt 0:01:50]} a4 {[%emt 0:11:48]} 24. Nd2 {[%emt 0:00:13]} c5 {[%emt 0:00:38]} 25. dxc6 {[%emt 0:00:55]} Bxc6 {[%emt 0:00:05]} 26. f3 {[%emt 0:04:22]} Kg7 {[%emt 0:00:42]} 27. Qc2 {[%emt 0:00:42]} Rc8 {[%emt 0:01:16]} 28. Nb1 {[%emt 0:01:38]} Nf8 {[%emt 0:01:50]} 29. Nc3 {[%emt 0:00:56]} Ne6 {[%emt 0:01:24]} 30. Qd3 {[%emt 0:00:58]} Nd4 {[%emt 0:00:51]} 31. Bd1 {[%emt 1:30:17]} Rd8 {[%emt 1:32:55]} 32. Ne2 {[%emt 0:03:31]} Ne6 {[%emt 0:00:19]} 33. Bc2 {[%emt 0:00:47]} Qb7 {[%emt 0:02:58]} 34. Bb1 {[%emt 0:00:48]} Rac8 {[%emt 0:01:11]} 35. Ba2 {[%emt 0:00:34]} Be8 {[%emt 0:01:17]} 36. Qd2 {[%emt 0:02:02]} Bf7 {[%emt 0:00:18]} 37. Qb2 {[%emt 0:00:52]} Rc7 {[%emt 0:00:36]} 38. Rd1 {[%emt 0:00:18]} Kf6 {[%emt 0:00:22]} 39. Rd2 {[%emt 0:02:48]} Ke7 {[%emt 0:00:40]} 40. Re1 {[%emt 0:02:27]} Rcd7 {[%emt 0:01:07]} 41. Nc3 {[%emt 0:02:22]} Nd4 {[%emt 0:00:00]} 42. Rxd4 {[%emt 0:00:00]} exd4 {[%emt 0:00:00]} 43. Nd5+ {[%emt 0:00:00]} Bxd5 {[%emt 0:00:00]} 44. exd5+ {[%emt 0:00:00]} Kf7 {[%emt 0:00:00]} 45. Qc2 {[%emt 0:00:00]} Re7 {[%emt 0:00:00]} 46. Qh7+ {[%emt 0:00:00]} Kf8 {[%emt 0:00:00]} 47. Qxh6+ {[%emt 0:00:00]} Ke8 {[%emt 0:00:00]} 48. Re6 {[%emt 0:00:00]} Rxe6 {[%emt 0:00:00]} 49. dxe6 {[%emt 0:00:00]} Qe7 {[%emt 0:00:00]} 50. Qh5+ {[%emt 0:00:00]} 1-0

[Event "GER-chT Youth Countries 2020"]
[Site "Berlin"]
[Date "2020.10.02"]
[Round "4"]
[White "Deuer, Marius"]
[Black "Hoppstaedter, Daniel"]
[Result "1-0"]
[ECO "E65"]
[WhiteElo "2161"]
[BlackElo "1712"]
[Annotator "ChessBase"]
[PlyCount "62"]
[EventDate "2020.09.30"]
[EventType "team-tourn"]
[EventRounds "7"]
[EventCountry "GER"]
[SourceTitle "playchess.com"]
[Source "ChessBase"]
[SourceQuality "1"]
[TimeControl "30/5400+30:0"]

1. d4 {[%emt 0:00:00]} Nf6 {[%emt 0:00:00]} 2. c4 {[%emt 0:00:00]} g6 {[%emt 0:00:00]} 3. Nc3 {[%emt 0:00:00]} Bg7 {[%emt 0:00:00]} 4. g3 {[%emt 0:00:02]} d6 {[%emt 0:00:12]} 5. Bg2 {[%emt 0:00:15]} O-O {[%emt 0:00:20]} 6. Nf3 {[%emt 0:00:09]} c5 {[%emt 0:05:29]} 7. O-O {[%emt 0:01:04]} cxd4 {[%emt 0:03:13]} 8. Nxd4 {[%emt 0:00:33]} Qb6 {[%emt 0:04:51]} 9. e3 {[%emt 0:07:44]} Nc6 {[%emt 0:01:25]} 10. b3 {[%emt 0:02:40]} Nxd4 {[%emt 0:06:23]} 11. exd4 {[%emt 0:10:28]} Bg4 {[%emt 0:10:02]} 12. Qd3 {[%emt 0:01:11]} Bf5 {[%emt 0:01:16]} 13. Qd2 {[%emt 0:00:20]} Nd7 {[%emt 0:03:22]} 14. Rd1 {[%emt 0:01:26]} e6 {[%emt 0:04:06]} 15. h3 {[%emt 0:02:37]} h5 {[%emt 0:00:10]} 16. Qe2 {[%emt 0:02:28]} Nf6 {[%emt 0:09:47]} 17. Bg5 {[%emt 0:09:06]} Nh7 {[%emt 0:13:50]} 18. Be3 {[%emt 0:11:11]} Nf6 {[%emt 0:03:09]} 19. Rac1 {[%emt 0:00:25]} Qa6 {[%emt 0:02:47]} 20. Nb5 {[%emt 0:06:49]} Rac8 {[%emt 0:02:36]} 21. Bg5 {[%emt 0:00:36]} Nh7 {[%emt 0:02:39]} 22. Be7 {[%emt 0:01:12]} Rfe8 {[%emt 0:00:52]} 23. Bxd6 {[%emt 0:09:18]} e5 {[%emt 0:04:27]} 24. dxe5 {[%emt 0:02:11]} Bxe5 {[%emt 0:01:02]} 25. Nc7 {[%emt 0:01:20]} Rxc7 {[%emt 0:02:42]} 26. Bxc7 {[%emt 0:00:09]} Ng5 {[%emt 0:00:45]} 27. Rd8 {[%emt 0:07:09]} Rxd8 {[%emt 0:01:45]} 28. Bxd8 {[%emt 0:00:17]} f6 {[%emt 0:00:34]} 29. f4 {[%emt 0:04:23]} Bd4+ {[%emt 0:00:48]} 30. Kh2 {[%emt 0:00:57]} Ne6 {[%emt 0:00:49]} 31. Bd5 {[%emt 1:32:42]} Kg7 {[%emt 1:31:15]} 1-0

[Event "GER-chT Youth Countries 2020"]
[Site "Berlin"]
[Date "2020.10.02"]
[Round "4"]
[White "Khachatryan, Taron"]
[Black "Hecht, Jonas Christian"]
[Result "1/2-1/2"]
[ECO "A04"]
[WhiteElo "2136"]
[BlackElo "1764"]
[Annotator "ChessBase"]
[PlyCount "106"]
[EventDate "2020.09.30"]
[EventType "team-tourn"]
[EventRounds "7"]
[EventCountry "GER"]
[SourceTitle "playchess.com"]
[Source "ChessBase"]
[SourceQuality "1"]
[TimeControl "30/5400+30:0"]

1. Nf3 {[%emt 0:00:00]} f5 {[%emt 0:01:24]} 2. d4 {[%emt 0:00:30]} Nf6 {[%emt 0:00:18]} 3. Bg5 {[%emt 0:00:33]} g6 {[%emt 0:03:39]} 4. Nc3 {[%emt 0:01:38]} Bg7 {[%emt 0:00:29]} 5. h4 {[%emt 0:00:45]} h6 {[%emt 0:01:11]} 6. Bxf6 {[%emt 0:00:14]} Bxf6 {[%emt 0:00:30]} 7. e4 {[%emt 0:00:04]} e6 {[%emt 0:12:43]} 8. h5 {[%emt 0:02:15]} g5 {[%emt 0:02:05]} 9. exf5 {[%emt 0:00:11]} exf5 {[%emt 0:00:12]} 10. Bc4 {[%emt 0:00:30]} Nc6 {[%emt 0:04:16]} 11. Qd3 {[%emt 0:00:36]} Ne7 {[%emt 0:01:18]} 12. Nd5 {[%emt 0:03:11]} Nxd5 {[%emt 0:00:47]} 13. Bxd5 {[%emt 0:00:09]} c6 {[%emt 0:00:32]} 14. Bb3 {[%emt 0:18:39]} d5 {[%emt 0:01:40]} 15. c4 {[%emt 0:00:23]} Be6 {[%emt 0:07:03]} 16. O-O-O {[%emt 0:01:38]} dxc4 {[%emt 0:04:49]} 17. Bxc4 {[%emt 0:00:15]} Bxc4 {[%emt 0:00:28]} 18. Rhe1+ {[%emt 0:00:51]} Kf7 {[%emt 0:02:09]} 19. Qxc4+ {[%emt 0:00:22]} Qd5 {[%emt 0:00:14]} 20. Qb4 {[%emt 0:00:56]} b6 {[%emt 0:00:53]} 21. Ne5+ {[%emt 0:02:16]} Kg7 {[%emt 0:00:40]} 22. Kb1 {[%emt 0:01:24]} Rhe8 {[%emt 0:01:12]} 23. g4 {[%emt 0:00:32]} fxg4 {[%emt 0:02:25]} 24. Qc3 {[%emt 0:02:21]} Bxe5 {[%emt 0:04:58]} 25. dxe5 {[%emt 0:00:16]} Qe6 {[%emt 0:00:22]} 26. Rd6 {[%emt 0:03:09]} Qf5+ {[%emt 0:00:28]} 27. Ka1 {[%emt 0:00:10]} Rad8 {[%emt 0:06:23]} 28. Rg6+ {[%emt 0:01:04]} Kh7 {[%emt 0:01:30]} 29. Qxc6 {[%emt 0:02:30]} Rxe5 {[%emt 0:10:11]} 30. Rxh6+ {[%emt 0:00:26]} Kg7 {[%emt 0:00:38]} 31. Rg6+ {[%emt 1:30:07]} Kh7 {[%emt 1:30:08]} 32. Rc1 {[%emt 0:08:20]} Rc5 {[%emt 0:05:06]} 33. Rxc5 {[%emt 0:00:56]} bxc5 {[%emt 0:00:36]} 34. Rh6+ {[%emt 0:02:20]} Kg7 {[%emt 0:01:18]} 35. Qg6+ {[%emt 0:01:32]} Qxg6 {[%emt 0:02:17]} 36. Rxg6+ {[%emt 0:00:02]} Kf7 {[%emt 0:01:07]} 37. a3 {[%emt 0:00:12]} Rd5 {[%emt 0:00:37]} 38. Ka2 {[%emt 0:01:34]} Rf5 {[%emt 0:00:11]} 39. Kb1 {[%emt 0:03:57]} Rxf2 {[%emt 0:00:32]} 40. Rxg5 {[%emt 0:00:06]} Rh2 {[%emt 0:00:18]} 41. Rxg4 {[%emt 0:01:09]} Rxh5 {[%emt 0:00:08]} 42. Ra4 {[%emt 0:00:01]} Ke6 {[%emt 0:00:24]} 43. Rxa7 {[%emt 0:00:06]} Kd5 {[%emt 0:00:13]} 44. Kc2 {[%emt 0:00:57]} Rh3 {[%emt 0:00:57]} 45. Rb7 {[%emt 0:02:49]} Kc4 {[%emt 0:01:00]} 46. b3+ {[%emt 0:00:18]} Kd5 {[%emt 0:00:06]} 47. Rd7+ {[%emt 0:00:16]} Kc6 {[%emt 0:00:07]} 48. Rd3 {[%emt 0:00:06]} Rh4 {[%emt 0:00:37]} 49. Kc3 {[%emt 0:00:05]} Kb5 {[%emt 0:00:15]} 50. a4+ {[%emt 0:00:50]} Kc6 {[%emt 0:00:59]} 51. Rg3 {[%emt 0:00:05]} Rh6 {[%emt 0:00:18]} 52. Rg4 {[%emt 0:00:16]} Rf6 {[%emt 0:00:42]} 53. Kc4 {[%emt 0:00:11]} Rh6 {[%emt 0:00:07]} 1/2-1/2

[Event "GER-chT Youth Countries 2020"]
[Site "Berlin"]
[Date "2020.10.02"]
[Round "4"]
[White "Lange, Jannis"]
[Black "Runte, Moritz"]
[Result "0-1"]
[ECO "A06"]
[WhiteElo "2126"]
[BlackElo "2114"]
[Annotator "ChessBase"]
[PlyCount "58"]
[EventDate "2020.09.30"]
[EventType "team-tourn"]
[EventRounds "7"]
[EventCountry "GER"]
[SourceTitle "playchess.com"]
[Source "ChessBase"]
[SourceQuality "1"]
[TimeControl "30/5400+30:0"]

1. Nf3 {[%emt 0:00:00]} d5 {[%emt 0:00:00]} 2. g3 {[%emt 0:00:00]} g6 {[%emt 0:00:00]} 3. Bg2 {[%emt 0:01:15]} Bg7 {[%emt 0:00:12]} 4. d4 {[%emt 0:00:21]} c6 {[%emt 0:00:15]} 5. O-O {[%emt 0:01:37]} Nf6 {[%emt 0:00:49]} 6. c4 {[%emt 0:01:06]} dxc4 {[%emt 0:01:22]} 7. Nc3 {[%emt 0:11:39]} b5 {[%emt 0:06:01]} 8. Ne5 {[%emt 0:07:38]} Nd5 {[%emt 0:10:09]} 9. a4 {[%emt 0:13:45]} b4 {[%emt 0:16:04]} 10. Nxc6 {[%emt 0:11:21]} Nxc6 {[%emt 0:00:27]} 11. Nxd5 {[%emt 0:00:03]} Bd7 {[%emt 0:05:15]} 12. Qc2 {[%emt 0:11:29]} Nxd4 {[%emt 0:08:57]} 13. Qxc4 {[%emt 0:01:10]} Rc8 {[%emt 0:00:33]} 14. Qd3 {[%emt 0:01:45]} Bf5 {[%emt 0:03:40]} 15. e4 {[%emt 0:04:58]} Qxd5 {[%emt 0:01:14]} 16. exf5 {[%emt 0:00:05]} Qxf5 {[%emt 0:00:27]} 17. Be4 {[%emt 0:00:03]} Qd7 {[%emt 0:02:21]} 18. Be3 {[%emt 0:06:31]} O-O {[%emt 0:02:32]} 19. a5 {[%emt 0:03:39]} Rfd8 {[%emt 0:04:38]} 20. Kh1 {[%emt 0:02:42]} f5 {[%emt 0:07:24]} 21. Bg2 {[%emt 0:05:15]} Nc2 {[%emt 0:05:29]} 22. Qb3+ {[%emt 0:00:36]} Kh8 {[%emt 0:01:05]} 23. Rab1 {[%emt 0:00:39]} Nxe3 {[%emt 0:01:02]} 24. Qxe3 {[%emt 0:00:04]} Rc2 {[%emt 0:01:06]} 25. Qb3 {[%emt 0:00:24]} Qd2 {[%emt 0:01:32]} 26. Qf7 {[%emt 0:06:21]} Rxb2 {[%emt 0:04:52]} 27. Rxb2 {[%emt 0:01:54]} Qxb2 {[%emt 0:00:12]} 28. Qxe7 {[%emt 0:00:03]} Qd4 {[%emt 0:00:39]} 29. Bf3 {[%emt 0:01:25]} b3 {[%emt 0:03:48]} 0-1